Cogmind - Beta 13 @@@ ROGUE MODE // 2024.06.11 @ 14:10:03 Player: SovietPaperclip Result: Self-destructed Performance ------------- Evolutions (1) 500 Regions Visited (2) 400 Robots Destroyed (14) 70 Value Destroyed (267) 267 Prototype IDs (0) 0 Alien Tech Used (0) 0 Bonus (0) 0 TOTAL SCORE: 1237 Bonus ------- None Cogmind --------- Core Integrity 309/400 Matter 149/300 Energy 100/100 System Corruption 0% Temperature Cool (0) Movement Treading (160) Location -9/Materials Parts ------- > --- POWER (1) -------- (None) > --- PROPULSION (3) --- Light Treads Light Treads > --- UTILITY (3) ------ Small Storage Unit Improved Targeting Computer Improved Targeting Computer > --- WEAPON (2) ------- Autogun > --- INVENTORY (8) ---- Light Ion Engine Light Treads Light Treads Heat Sink Tractor Beam Particle Cannon Particle Cannon Light Cannon Peak State ------------ > --- POWER ------------ Light Ion Engine > --- PROPULSION ------- Light Treads Light Treads Light Treads > --- UTILITY ---------- Small Storage Unit Improved Targeting Computer Improved Targeting Computer > --- WEAPON ----------- Autogun Autogun > --- INVENTORY -------- Light Ion Engine Light Treads Light Treads Utility Shielding Tractor Beam Particle Cannon Particle Cannon Light Cannon [Rating: 14] Favorites ----------- Power Light Ion Engine Engine Light Ion Engine Propulsion Light Treads Treads Light Treads Utility Small Storage Unit Storage Small Storage Unit Processor Improved Targeting Computer Weapon Autogun Energy Gun EM Pulse Gun Ballistic Gun Autogun Ballistic Cannon Light Cannon Build | -11 -10 -9 ------- Run | Yrd Mat Mat Slots Evolved 2 | . . 2 Power . | . . . Propulsion 1 | . . 1 Utility 1 | . . 1 Weapon . | . . . Parts Attached 15 | 6 4 5 Power 2 | 1 1 . Engine 2 | 1 1 . Core . | . . . Reactor . | . . . Propulsion 3 | 2 . 1 Treads 3 | 2 . 1 Leg . | . . . Wheel . | . . . Hover . | . . . Flight . | . . . Utility 3 | 1 . 2 Device . | . . . Storage 1 | 1 . . Processor 2 | . . 2 Hackware . | . . . Protection . | . . . Artifact . | . . . Weapon 7 | 2 3 2 Energy Gun 1 | 1 . . Energy Cannon . | . . . Ballistic Gun 3 | 1 . 2 Ballistic Cannon 3 | . 3 . Launcher . | . . . Special Weapon . | . . . Impact Weapon . | . . . Slashing Weapon . | . . . Piercing Weapon . | . . . Special Melee Weapon . | . . . Unidentified Prototypes . | . . . Parts Lost 1 | . . 1 Power 1 | . . 1 Propulsion . | . . . Utility . | . . . Weapon . | . . . Highest Loss Streak 1 | . . 1 To Critical Strikes . | . . . Average Slot Usage (%) 83 | . 85 82 Engine 11 | . 14 11 Treads 25 | . 28 24 Storage 11 | . 14 11 Processor 9 | . . 14 Energy Gun 2 | . 8 . Ballistic Gun 12 | . 8 14 Ballistic Cannon 8 | . 11 7 Naked Turns . | . . . Heaviest Build 14 | 11 14 14 Greatest Support 60 | 40 40 60 Greatest Overweight (x) . | . . . Average Overweight (x) . | . . . Largest Inventory Capacity 8 | 8 8 8 Average Capacity 7 | 6 8 8 Most Carried 8 | 1 6 8 Average Carried 5 | . 3 6 Final Capacity 8 | 8 8 8 Final Carried 8 | 1 5 8 Class Distribution -------------------- 100% | Mutant Dominant Class ---------------- Mutant | -10/Materials Mutant | -9/Materials Resources | -11 -10 -9 ----------- Run | Yrd Mat Mat Matter Collected 490 | 249 39 202 Remotely . | . . . Salvage Created 483 | . 224 259 Parts 30 | . 16 14 Haulers Intercepted 2 | . 1 1 Recyclers Shooed . | . . . Parts Field Recycled . | . . . Retrieved Matter . | . . . Parts Self-Destructed . | . . . Prevented . | . . . Kills | -11 -10 -9 ------- Run | Yrd Mat Mat Combat Hostiles Destroyed 10 | . 3 7 Guns 4 | . . 4 Cannons 5 | . 2 3 AOE 1 | . 1 . Classes Destroyed 6 | . 5 1 Hauler 2 | . 1 1 Recycler 1 | . 1 . Watcher 1 | . 1 . Swarmer 5 | . 2 3 Grunt 4 | . 1 3 Sentry 1 | . . 1 Best Kill Streak 3 | . 2 3 Combat Bots Only 3 | . 2 3 Max Kills in Single Turn 1 | . 1 1 Gunslinging . | . . . Exploded 1 | . 1 . Melee . | . . . Uniques/NPCs Destroyed . | . . . Combat | -11 -10 -9 -------- Run | Yrd Mat Mat Hostile Shots Fired 60 | . 18 42 Missed 11 | . 3 8 Damage Taken 621 | . 115 506 Core 138 | . 47 91 Absorbed by Shields . | . . . Core Remaining (%) 90 | 100 81 . Volleys Fired 45 | . 16 29 Largest 2 | . 2 2 Hottest 70 | . 70 70 Shots Fired 88 | . 32 56 Gun 56 | . 16 40 Cannon 32 | . 16 16 Launcher . | . . . Special . | . . . Kinetic 80 | . 24 56 Thermal . | . . . Explosive . | . . . Electromagnetic 8 | . 8 . Robot Hit Streak 14 | . 3 14 Robot Miss Streak 15 | . 7 15 Penetration Max . | . . . Secondary Targets . | . . . Shots Hit Robots 46 | . 12 34 Core Hits 19 | . 7 12 Critical Kills . | . . . Critical Parts Destroyed . | . . . Critical Strikes . | . . . Melee Attacks . | . . . Impact . | . . . Slashing . | . . . Piercing . | . . . Sneak Attacks . | . . . Combat Hostiles . | . . . Follow-up Attacks . | . . . Damage Inflicted 786 | . 239 547 Guns 586 | . 111 475 Cannons 150 | . 78 72 Explosions 50 | . 50 . Melee . | . . . Ramming . | . . . Kinetic 646 | . 99 547 Thermal 50 | . 50 . Explosive . | . . . Electromagnetic 90 | . 90 . Impact . | . . . Slashing . | . . . Piercing . | . . . Highest Corruption . | . . . Average Corruption . | . . . Corruption Purged . | . . . Corruption Blocked . | . . . Overload Shots . | . . . Overflow Damage . | . . . Projectiles . | . . . Explosions . | . . . Melee . | . . . Knockbacks 2 | . 1 1 Impact . | . . . Kinetic 2 | . 1 1 Secondary . | . . . Self-Inflicted Damage . | . . . Shots . | . . . Rammed . | . . . Targets Rammed . | . . . Kicked . | . . . Crushed . | . . . Highest Temperature 45 | . 45 9 Average Temperature 15 | . 17 6 Received Heat Transfer 57 | . . 57 Siege Activations . | . . . Robots Corrupted . | . . . Combat Hostiles . | . . . Parts Fried . | . . . Impact Corruptions . | . . . Robots Melted . | . . . Combat Hostiles . | . . . Parts Melted . | . . . Heat Transferred 100 | . 100 . Parts Sabotaged . | . . . Parts Stolen . | . . . Parts Stripped . | . . . Power Chain Reactions 1 | . 1 . Alert | -11 -10 -9 ------- Run | Yrd Mat Mat Peak Influence 297 | . 137 297 Initial 57 | . . 57 Average 121 | . 60 167 Maximum Alert Level 1 | . . 1 Low Security (%) 72 | 100 100 55 Level 1 27 | . . 45 Level 2 . | . . . Level 3 . | . . . Level 4 . | . . . Level 5 . | . . . High Security . | . . . Max Security . | . . . Squads Dispatched 2 | . . 2 Investigation 1 | . . 1 Extermination . | . . . Reinforcement 1 | . . 1 Assault . | . . . Garrison . | . . . Intercept . | . . . Searches Triggered . | . . . Construction Impeded . | . . . Haulers Reinforced . | . . . Active Scanning Responses . | . . . Cargo Convoy Interrupts . | . . . Stealth | -11 -10 -9 --------- Run | Yrd Mat Mat Distress Signals . | . . . Communications Jammed . | . . . Distress Signals . | . . . Times Spotted 15 | . 5 10 Peak Tracking Total 3 | . 3 3 Tactical Retreats 2 | . 1 1 Traps | -11 -10 -9 ------- Run | Yrd Mat Mat Traps Triggered 1 | . 1 . Indirectly . | . . . Trap Hack Attempts . | . . . Triggered . | . . . Disarmed . | . . . Reprogrammed . | . . . Reused . | . . . Traps Extracted . | . . . Installed . | . . . Triggered . | . . . Machines | -11 -10 -9 ---------- Run | Yrd Mat Mat Machines Disabled 1 | . 1 . Max in Single Turn 1 | . 1 . Machines Repaired . | . . . Machines Dismantled . | . . . Machines Sabotaged . | . . . Overloaded Fab Kills . | . . . Hacking | -11 -10 -9 --------- Run | Yrd Mat Mat Machines Accessed 3 | . . 3 Terminals 3 | . . 3 Fabricators . | . . . Repair Stations . | . . . Recycling Units . | . . . Scanalyzers . | . . . Garrison Access . | . . . Total Hacks 8 | . . 8 Successful 1 | . . 1 Failed 7 | . . 7 Catastrophic 1 | . . 1 Database Lockouts . | . . . Manual 8 | . . 8 Terminals 8 | . . 8 Fabricators . | . . . Repair Stations . | . . . Recycling Units . | . . . Scanalyzers . | . . . Garrison Access . | . . . Terminal Hacks 1 | . . 1 Part Schematic 1 | . . 1 Fabricator Hacks . | . . . Repair Station Hacks . | . . . Recycling Unit Hacks . | . . . Scanalyzer . | . . . Garrison Access Hacks . | . . . Unauthorized Hacks . | . . . Terminals . | . . . Fabricators . | . . . Repair Stations . | . . . Recycling Units . | . . . Scanalyzers . | . . . Garrison Access . | . . . Data Cores Recovered . | . . . Used . | . . . Hacking Detections 3 | . . 3 Full Trace Events 1 | . . 1 Feedback Events . | . . . Feedback Blocked . | . . . Robot Schematics Acquired . | . . . Robots Built . | . . . Authchips . | . . . Time . | . . . Total Robot Build Rating . | . . . Part Schematics Acquired 1 | . . 1 Parts Built . | . . . Authchips . | . . . Time . | . . . Total Part Build Rating . | . . . Parts Repaired . | . . . Time . | . . . Parts Recycled . | . . . Recycled Matter . | . . . Retrieved Matter . | . . . Retrieved Components . | . . . Parts Scanalyzed . | . . . Part Schematics Acquired . | . . . Parts Damaged . | . . . Bothacking | -11 -10 -9 ------------ Run | Yrd Mat Mat Used RIF Installer . | . . . Robots Hacked . | . . . Non-combat . | . . . Combat . | . . . Robot Hacks Applied . | . . . Relay Couplers Released . | . . . Fabnet Peak Effective % . | . . . Robots Rewired . | . . . Allies Hacked . | . . . Hacks Repelled . | . . . Allies | -11 -10 -9 -------- Run | Yrd Mat Mat Total Allies . | . . . Largest Group . | . . . Highest-Rated Group . | . . . Highest-Rated Ally . | . . . Total Orders . | . . . Ally Attacks . | . . . Total Damage . | . . . Kills . | . . . Allies Corrupted . | . . . Allies Melted . | . . . Intel | -11 -10 -9 ------- Run | Yrd Mat Mat Robot Analysis Total . | . . . Derelict Logs Recovered . | . . . Drone Launches . | . . . Drone Recoveries . | . . . Exploration | -11 -10 -9 ------------- Run | Yrd Mat Mat Turns Passed 677 | 62 195 420 Spaces Moved 303 | 36 79 188 Core 4 | 4 . . Treads 299 | 32 79 188 Legs . | . . . Wheels . | . . . Hover . | . . . Flight . | . . . Fastest Speed 50 | 50 160 160 Average Speed 158 | 147 160 160 Slowest Speed 160 | 160 160 160 Overloaded Moves . | . . . Propulsion Burnouts . | . . . Robots Hopped . | . . . Cave-ins Triggered . | . . . Exploration Rate (%) 16 | 4 27 17 Regions Visited 2 Branch Regions . Pre-discovered Areas . | . . . Known Exits Taken . | . . . Unknown Exits Taken 2 | 1 1 . Scrap Searched . | . . . Spaces Dug . | . . . Terrain Destroyed 3 | . 3 . Melee . | . . . Projectile . | . . . AOE 3 | . 3 . Terrain Rammed . | . . . Walls Destroyed . | . . . Machines Disabled . | . . . Actions | -11 -10 -9 --------- Run | Yrd Mat Mat Total 420 | 42 116 262 Wait 38 | . 12 26 Move 301 | 35 78 188 Hop . | . . . Pick Up 15 | 1 5 9 Fast Attach 10 | 6 2 2 Attach 3 | . . 3 Detach . | . . . Swap 2 | . 2 . Drop 6 | . 1 5 Fire 45 | . 16 29 Melee . | . . . Ram . | . . . Kick . | . . . Crush . | . . . Escape Stasis . | . . . Rewire . | . . . Trap . | . . . Miscellaneous . | . . . Route ------- -11/Scrapyard -10/Materials -9/Materials (discovered 1 exit: [*Min]) History --------- Turn | Location | Event 8 | -11/Scrapyard | Discovered new exit (range 13) 63 | -11/Scrapyard | Entered Materials 187 | -10/Materials | Discovered new exit (range 15) 258 | -10/Materials | Entered another Materials area 258 | -9/Materials | Evolved 2 slots: Propulsion x1, Utility x1 315 | -9/Materials | Build established: Mutant 649 | -9/Materials | Discovered new exit (range 6) 678 | -9/Materials | Self-destructed Last Messages --------------- M003. Dispatching Investigation squad. 00574_ K-01 Serf cleans the Atomic Centrifuge. 00604_ A-02 Transporter destroyed. 00606_ K-01 Serf collects debris. 00606_ G-34 Mercenary destroyed. 00609_ K-01 Serf collects debris. 00615_ Acquired Lgt. Treads. 00618_ K-01 Serf collects debris. 00621_ Dropped Lgt. Treads. 00621_ Acquired Lgt. Treads. 00622_ Acquired 51 matter. 00623_ K-01 Serf collects debris. 00625_ Dropped Utility Shielding. 00625_ Acquired Heat Sink. 00627_ K-01 Serf collects debris. 00633_ R-06 Scavenger collects Heat Sink. 00649_ EXIT=FOUND 00667_ Lgt. Treads severed. 00672_ Autogun severed. 00675_ Lgt. Ion Engine destroyed. Map ----- +----------------------------------------------------+ | ??????? / # #???????????????????????? | | ??????????????# / #???????????????????????? | | ??????????????# # #???????????????????????? | | ??????????????# # #???????????????????????? | | ??????????????######## ##??????????????????????? | | ??????? ############# #??????????????????????? | | ??????# #??????????????????????? | | ??????# T #??????????????????????? | | ??????# #??????????????????????? | | ???????############## #??????????????????????? | | ???????# ] ] ## ####??????????????????????? | | ???????# [ """" ## #?#########???????????????? | | ???????# ! """" ## #?# #???????????????? | | ???????# """" ## #?# #???????????????? | | ???????# ## #?# #???????????????? | | ???????#########+##### ### #???????????????? | | ???????# # #???????????????? | | ???????# ^^ + = #???????????????? | | ???????# %# [ #???????????????? | | ???????# """ ######## [ #???????????????? | | ???????#!!] """ #??????# #???????????????? | | ???????#!!] """ #??????#########???????????????? | | ########!] ######## ##+####?????????? | | k ????????? | | t k [ < ????????? | | @l r ????????? | | ########### ######### ##g #???????????????? | | ??????????# # # #? "|"!" #???????????????? | | ??????????# # """"" # #??"|"!""#???????????????? | | ?########## # """"" # #?########???????????????? | | ?# # # """"" # #? ????????????????? | | ?# """ # # [ # # """ ????????????????? | | ?# "T" [ # ######/## # """ #???????????????? | | ?# #*%= ! + """ #???????????????? | | ?# !+ ! ! # #???????????????? | | # """[# =! # """ #???????????????? | | ## """ ###+####+######? """ #???????????????? | | ?# """ # ?# ????? """ ?????????????????? | | ?# # """ ## ???? ?????????????????? | | ?########## """ ## #???######????????????????? | | ??????????# """ ## #?????????????????????????? | | ??????????# """ ## """ #?????????????????????????? | | ??????????# """ ## """ #?????????????????????????? | | ??????????# ??? ## """ #?????????????????????????? | | ??????????##???#########?????????????????????????? | | ?????????????????????????????????????????????????? | | ?????????????????????????????????????????????????? | | ?????????????????????????????????????????????????? | | ?????????????????????????????????????????????????? | | ?????????????????????????????????????????????????? | +----------------------------------------------------+ Best States ------------- Heat Dissipation 28 Energy Generation 10 Energy Capacity 125 Matter Stores 300 Matter Capacity 300 Sight Range 16 Terrain Scan Density 10 Evasion (%) 40 Targeting Accuracy 12 Recoil Reduction 3 Item Schematics ----------------- Cargo Storage Unit | -9/Materials | Hacked Robot Schematics ------------------ None Fabricated ------------ Nothing Alien Tech Used ----------------- None Achievements -------------- None Challenges ------------ None Game ------ Seed TerrabombKineticFlamer Manual? 0 Play Time 00:07:08 Cumulative 119.6 hours Start 2024.06.11 @ 13:40:24 End 2024.06.11 @ 14:10:03 Sessions 3 Manual Loads 0 Difficulty Rogue Special Mode None Game No. 161 Rogue 161 Adventurer 0 Explorer 0 Win Type - Total 1 Types 1/0/0/0/0/0/0/0/0 Lore% 49 Gallery% 53 Achievement% 50 Wizard Run 0 Options --------- Layout 1 ASCII 0 Keyboard 0 Movement Mouse Keybinds 0 Fullscreen 1 Font 32/SmallcapsGlow Map View 50x35 Zoom Use 0% Tactical HUD 1 Map Filters NONE Filters NONE Steam 1 RUN: a84bc26d-bcc2-4dea-a9d0-1003a8accd68